bitfinex/quotes_ETHUSD_20250222
["timestamp","ask_amount","ask_price","bid_price","bid_amount"]
[1740203426119,3.70848,2696.6,2696.2,3.54456558]
[1740203426314,0.04381527,2696.3,2696.2,3.54456558]
[1740203426516,3.70865,2696.4,2696.2,3.54456558]
[1740203426736,0.04381527,2696.3,2696.2,3.54456558]
[1740203426952,3.75259527,2696.3,2696.2,3.54456558]
[1740203427152,0.04381527,2696.3,2696.2,3.54456558]
[1740203427528,3.70866,2696.4,2696.2,3.54456558]
[1740203427729,0.04381527,2696.3,2696.2,3.54456558]
[1740203428145,3.70871,2696.4,2696.2,3.54456558]
[1740203428342,0.04381527,2696.3,2696.2,3.54456558]
[1740203430167,3.75259527,2696.3,2696.2,3.54456558]
[1740203431385,3.75259527,2696.3,2695.9,3.54456558]
[1740203431975,3.70896,2696.2,2695.9,3.54456558]
[1740203432353,0.04393906,2696.1,2695.9,3.54456558]
[1740203433077,0.04393906,2696.0,2695.9,3.54456558]
[1740203433465,3.70898,2696.2,2695.9,3.54456558]
[1740203433660,0.04393906,2696.0,2695.9,3.54456558]
[1740203433881,3.70898,2696.2,2695.9,3.54456558]
[1740203433882,3.70912,2696.1,2695.9,3.54456558]
[1740203434065,0.04393906,2696.0,2695.9,3.54456558]
[1740203435536,3.70837,2696.6,2695.4,3.17906802]
[1740203435734,3.70837,2696.6,2695.5,3.54456558]
[1740203435735,3.70974,2695.6,2695.5,3.54456558]
[1740203436279,3.7532116,2695.6,2695.5,3.54456558]
[1740203437086,3.71026,2695.3,2695.2,3.54456558]
[1740203437534,3.75311272,2695.3,2695.2,3.54456558]
[1740203439307,0.04285272,2695.3,2695.2,3.54456558]
[1740203440212,3.75301272,2695.3,2695.2,3.54456558]
[1740203441279,3.71037,2695.2,2694.9,3.54456558]
[1740203441874,0.04285272,2695.1,2694.9,3.54456558]
[1740203442315,3.71016,2695.3,2694.9,7.25526558]
[1740203442466,0.04173861,2695.0,2694.9,7.25526558]
[1740203442672,3.71016,2695.3,2694.9,7.25526558]
[1740203442904,0.04173861,2695.0,2694.9,8.46002519]
[1740203443102,3.71016,2695.3,2694.9,4.74932519]
[1740203443304,3.71016,2695.3,2695.2,3.54456558]
[1740203450412,3.71016,2695.3,2694.9,3.54456558]
[1740203450737,3.71002,2695.4,2694.9,3.54456558]
[1740203450881,3.71036,2695.2,2694.9,3.54456558]
[1740203451344,12.02941,2695.9,2694.9,4.27010514]
[1740203451632,3.70941,2695.9,2695.6,3.54456558]
[1740203451833,7.41887,2695.9,2695.6,3.54456558]
[1740203452137,3.70941,2695.9,2695.6,3.54456558]
[1740203452631,3.70915,2696.1,2695.6,3.54456558]
[1740203452632,3.70961,2695.7,2695.6,3.54456558]
[1740203452834,3.70986,2695.6,2695.3,3.54456558]
[1740203453769,7.41933,2695.7,2695.3,3.54456558]
[1740203453892,7.4193,2695.7,2695.3,3.54456558]
[1740203454239,3.70979,2695.6,2695.3,3.54456558]
[1740203454435,3.70961,2695.7,2695.3,3.54456558]
[1740203454739,3.70995,2695.5,2695.3,3.54456558]
[1740203456737,3.71002,2695.4,2695.3,3.54456558]
[1740203456900,3.75151098,2695.4,2695.3,3.54456558]
[1740203457323,3.75160098,2695.4,2695.2,6.7236336]
[1740203457532,0.04149098,2695.4,2695.2,6.7236336]
[1740203457854,0.04149098,2695.4,2695.2,7.76705096]
[1740203458159,3.70976,2695.6,2695.2,7.76705096]
[1740203458359,0.04149098,2695.3,2695.2,7.76705096]
[1740203458642,0.73211895,2696.1,2695.2,8.29818294]
[1740203458643,3.70957,2695.8,2695.2,8.29818294]
[1740203458803,3.70955,2695.8,2695.6,3.54456558]
[1740203459141,3.75110098,2695.7,2695.6,3.54456558]
[1740203459323,0.04149098,2695.7,2695.6,3.54456558]
[1740203459841,3.70955,2695.8,2695.6,3.54456558]
[1740203460140,0.04149098,2695.7,2695.6,3.54456558]
[1740203460812,3.70961,2695.7,2695.6,3.54456558]
[1740203461139,3.75105971,2695.7,2695.6,3.54456558]
[1740203461337,0.04144971,2695.7,2695.6,3.54456558]
[1740203461706,3.70934,2695.9,2695.6,3.54456558]
[1740203461906,0.04146347,2695.7,2695.6,3.54456558]
[1740203462427,3.70956,2695.8,2695.6,3.54456558]
[1740203462631,3.75107347,2695.7,2695.3,3.54456558]
[1740203463455,3.70985,2695.6,2695.3,3.54456558]
[1740203463950,0.04146347,2695.5,2695.3,3.54456558]
[1740203464523,3.75137347,2695.5,2695.3,3.54456558]
[1740203465682,0.04146347,2695.5,2695.3,3.54456558]
[1740203465877,0.04146347,2695.5,2695.3,4.27004714]
[1740203466085,3.75135347,2695.5,2695.3,3.54456558]
[1740203466850,3.7103,2695.2,2695.0,6.7236336]
[1740203467053,0.04138093,2695.1,2695.0,3.54456558]
[1740203467255,3.75181093,2695.1,2695.0,3.54456558]
[1740203471173,3.75181093,2695.1,2694.8,3.93226177]
[1740203471491,3.71066,2695.0,2694.9,3.54456558]
[1740203471847,3.75204093,2695.0,2694.9,3.54456558]
[1740203474045,3.71112,2694.6,2694.5,3.54456558]
[1740203474281,3.75193677,2694.6,2694.5,3.54456558]
[1740203476409,0.04081677,2694.6,2694.1,7.56120139]
[1740203476614,0.04081677,2694.6,2694.4,3.54456558]
[1740203477531,0.04081677,2694.6,2694.5,3.71126]
[1740203477890,3.0,2695.1,2694.4,7.25595558]
[1740203478203,6.71046,2695.1,2694.9,3.54456558]
[1740203478420,0.04039009,2695.0,2694.9,3.54456558]
[1740203478590,3.75096009,2695.0,2694.9,3.54456558]
[1740203478991,0.04039009,2695.0,2694.6,3.54456558]
[1740203479200,3.71083,2694.9,2694.6,3.54456558]
[1740203479925,0.04039009,2694.8,2694.0,3.44706802]
[1740203480225,0.04039009,2694.8,2694.6,3.54456558]
[1740203480525,0.04039009,2694.7,2694.1,0.55]
[1740203480682,0.04039009,2694.7,2694.6,3.54456558]
[1740203480882,3.71025,2695.3,2694.6,7.25568558]
[1740203481079,0.04039009,2695.2,2694.9,3.54456558]
[1740203481283,3.71031,2695.2,2694.9,3.54456558]
[1740203481519,3.75091009,2695.1,2694.6,3.54456558]
[1740203481683,3.71071,2694.9,2694.6,3.54456558]
[1740203481883,0.03946806,2694.8,2694.6,3.54456558]
[1740203482519,3.75033806,2694.8,2694.6,3.54456558]
[1740203482726,0.03946806,2694.8,2694.6,3.54456558]
[1740203482926,3.75032806,2694.8,2694.6,3.54456558]
[1740203483084,0.03946806,2694.8,2694.6,3.54456558]
[1740203484009,3.75032806,2694.8,2694.6,3.54456558]
[1740203485016,1.5969,2694.7,2694.6,3.54456558]
[1740203485214,5.30788,2694.7,2694.6,3.54456558]
[1740203485531,1.63636806,2694.7,2694.6,3.54456558]
[1740203485699,0.03946806,2694.7,2694.6,3.54456558]
[1740203486140,3.71073,2694.9,2694.6,3.54456558]
[1740203486334,0.03946806,2694.7,2694.6,3.54456558]
[1740203486636,3.71043,2695.1,2694.6,3.54456558]
[1740203486803,0.03946806,2694.7,2694.6,3.54456558]
[1740203487004,3.71022,2695.3,2694.6,7.25567558]
[1740203487229,0.03946806,2694.7,2694.5,3.71124]
[1740203487404,3.71029,2695.2,2694.5,3.71124]
[1740203487623,3.71046,2695.1,2694.5,3.71124]
[1740203487826,0.03946806,2695.0,2694.8,3.54456558]
[1740203488634,3.71051,2695.1,2694.8,3.54456558]
[1740203488835,0.03946806,2695.0,2694.8,3.54456558]
[1740203492124,4.3434206,2695.2,2694.8,3.54456558]
[1740203492637,3.74990806,2695.1,2694.8,3.54456558]
[1740203493139,3.71064,2695.0,2694.8,3.54456558]
[1740203493339,3.71071,2694.9,2694.5,3.54456558]
[1740203493737,0.03946806,2694.8,2694.5,3.54456558]
[1740203494875,7.42127,2695.0,2694.5,3.54456558]
[1740203495024,3.75017806,2694.9,2694.5,3.54456558]
[1740203495237,0.03946806,2694.9,2694.5,3.54456558]
[1740203495439,0.03946806,2694.9,2694.5,4.95921894]
[1740203495636,0.03946806,2694.9,2694.8,3.54456558]
[1740203496282,3.71039,2695.2,2694.8,3.54456558]
[1740203496440,3.74993806,2695.1,2694.8,3.54456558]
[1740203496641,3.71057,2695.0,2694.8,3.54456558]
[1740203497171,0.03946806,2694.9,2694.8,3.54456558]
[1740203498640,3.71044,2695.1,2694.8,3.54456558]
[1740203498945,0.03946806,2695.0,2694.8,3.54456558]
[1740203500262,0.03946806,2695.0,2694.8,4.30630603]
[1740203501969,3.71071,2694.9,2694.3,6.89055802]
[1740203502189,3.75004806,2695.0,2694.4,3.54456558]
[1740203502492,3.71052,2695.1,2694.4,7.25586558]
[1740203502716,0.03950934,2695.0,2694.4,7.25586558]
[1740203502923,0.03950934,2695.0,2694.7,3.54456558]
[1740203503918,3.75008934,2695.0,2694.7,3.54456558]
[1740203504623,0.03950934,2695.0,2694.7,3.54456558]
[1740203505734,1.87729593,2694.9,2694.4,3.54456558]
[1740203505880,1.87729593,2694.9,2694.3,3.71153]
[1740203506082,5.21268,2695.2,2694.5,7.25579558]
[1740203506305,0.03950934,2695.1,2694.5,7.25579558]
[1740203507083,3.75000934,2695.1,2694.5,3.54456558]
[1740203509822,7.46051934,2695.1,2694.5,3.54456558]
[1740203510119,3.75000934,2695.1,2694.5,3.54456558]
[1740203510323,7.46052934,2695.1,2694.5,3.54456558]
[1740203510614,3.75000934,2695.1,2694.5,3.54456558]
[1740203510780,7.46052934,2695.1,2694.5,3.54456558]
[1740203511916,3.71071,2695.0,2694.5,3.54456558]
[1740203512298,3.75023934,2694.9,2694.5,3.54456558]
[1740203514701,3.71085,2694.8,2694.5,3.54456558]
[1740203515315,0.03950934,2694.7,2694.5,3.54456558]
[1740203515486,3.71085,2694.8,2694.5,3.54456558]
[1740203515687,0.03950934,2694.7,2694.5,3.54456558]
[1740203515910,3.71085,2694.8,2694.5,3.54456558]
[1740203516125,0.03950934,2694.7,2694.5,3.54456558]
[1740203516420,3.71085,2694.8,2694.5,3.54456558]
[1740203516619,0.03950934,2694.6,2694.5,3.54456558]
[1740203516811,3.71085,2694.8,2694.5,3.54456558]
[1740203517324,0.03911013,2694.7,2694.5,3.54456558]
[1740203517527,3.71085,2694.8,2694.5,3.54456558]
[1740203517683,0.03911013,2694.6,2694.5,3.54456558]
[1740203517888,3.71098,2694.7,2694.5,3.54456558]
[1740203518099,4.12132813,2694.6,2694.2,3.54456558]
[1740203518321,3.75023013,2694.6,2694.2,3.54456558]
[1740203518945,3.71146,2694.4,2693.8,3.71212]
[1740203519091,1.5747,2694.5,2694.0,3.54456558]
[1740203519291,0.03865582,2694.4,2694.3,3.54456558]
[1740203519494,3.7112,2694.6,2694.3,3.54456558]
[1740203519719,0.03864205,2694.5,2694.3,3.54456558]
[1740203520122,3.74996205,2694.5,2694.3,3.54456558]
[1740203520926,0.03864205,2694.5,2694.3,3.54456558]
[1740203521140,3.71115,2694.6,2694.3,3.54456558]
[1740203521427,0.03864205,2694.4,2694.3,3.54456558]
[1740203521636,3.7114,2694.4,2694.3,3.54456558]
[1740203521815,3.75004205,2694.4,2694.3,3.54456558]
[1740203522727,0.03864205,2694.4,2694.3,3.54456558]
[1740203523217,3.71132,2694.5,2694.3,3.54456558]
[1740203523417,0.03864205,2694.4,2694.3,3.54456558]
[1740203524822,3.71106,2694.7,2694.3,3.54456558]
[1740203525138,3.71115,2694.6,2694.3,3.54456558]
[1740203525344,3.74979205,2694.6,2694.3,3.54456558]
[1740203527144,0.03864205,2694.6,2694.3,3.54456558]
[1740203527860,3.71068,2695.0,2694.4,3.71138]
[1740203528322,0.03640699,2694.9,2694.6,3.54456558]
[1740203529516,3.71086,2694.8,2694.6,3.54456558]
[1740203530052,0.03640699,2694.7,2694.6,3.54456558]
[1740203530251,0.03640699,2694.7,2694.3,6.7236336]
[1740203530553,3.7478825,2694.6,2694.3,6.7236336]
[1740203530936,0.0366825,2694.6,2694.3,6.7236336]
[1740203531329,5.24616,2695.0,2694.4,3.71138]
[1740203531551,0.0366825,2694.9,2694.6,3.54456558]
[1740203534357,0.0366825,2694.9,2694.6,7.25562558]
[1740203534553,3.71044,2695.1,2694.6,7.25562558]
[1740203534745,0.03675137,2694.8,2694.6,7.25562558]
[1740203534946,3.71044,2695.1,2694.6,7.25562558]
[1740203535151,0.03675137,2694.7,2694.6,7.25562558]
[1740203535328,3.71044,2695.1,2694.6,7.25562558]
[1740203535527,0.03675137,2695.0,2694.6,3.54456558]
[1740203538062,0.03675137,2695.0,2694.6,7.25568558]
[1740203538234,0.03675137,2695.0,2694.6,3.54456558]
[1740203539460,0.03675137,2695.0,2694.6,7.25567558]
[1740203539628,0.03675137,2695.0,2694.6,3.54456558]
[1740203542682,0.56502051,2695.0,2694.6,3.54456558]
[1740203542849,3.71077,2694.9,2694.6,3.54456558]
[1740203543190,3.74798974,2694.9,2694.6,3.54456558]
[1740203544043,0.03721974,2694.9,2694.6,3.54456558]
[1740203545747,3.74793974,2694.9,2694.6,3.54456558]
[1740203546081,3.64793974,2694.9,2694.6,3.54456558]
[1740203546379,1.5987,2694.7,2694.3,6.7236336]
[1740203546579,3.71112,2694.6,2694.3,6.7236336]
[1740203546949,3.74721046,2694.5,2694.3,6.7236336]
[1740203547159,0.03589046,2694.5,2694.3,6.7236336]
[1740203549082,0.03589046,2694.5,2694.4,3.7114]
[1740203549288,0.03589046,2694.5,2694.4,5.12605436]
[1740203549451,3.7104,2695.2,2694.5,3.71115]
[1740203549651,7.42079,2695.2,2694.8,3.54456558]
[1740203549851,7.42078,2695.2,2694.8,3.54456558]
[1740203550052,3.71039,2695.2,2694.8,3.54456558]
[1740203550252,3.71038,2695.2,2694.8,3.54456558]
[1740203550467,3.71049,2695.1,2694.8,3.54456558]
[1740203551781,7.42078,2695.2,2694.8,3.54456558]
[1740203552182,3.71044,2695.1,2694.8,3.54456558]
[1740203555767,3.71032,2695.2,2694.8,3.54456558]
[1740203557295,3.70933,2695.9,2695.1,3.54456558]
[1740203557496,3.7099,2695.5,2695.1,3.54456558]
[1740203558501,3.71002,2695.4,2695.1,3.54456558]
[1740203560570,3.7099,2695.5,2695.1,3.54456558]
[1740203561302,3.70956,2695.8,2695.2,3.71017]
[1740203561483,3.70966,2695.7,2695.1,7.25492558]
[1740203561885,0.03642761,2695.6,2695.1,3.54456558]
[1740203562081,3.71009,2695.4,2695.1,3.54456558]
[1740203562471,0.03642761,2695.3,2695.1,3.54456558]
[1740203563172,3.74661761,2695.3,2695.1,3.54456558]
[1740203563675,3.74661761,2695.3,2694.9,3.17906802]
[1740203563883,3.71039,2695.2,2694.9,3.17906802]
[1740203564306,0.03642761,2695.1,2694.9,3.17906802]
[1740203564907,7.42043,2695.3,2694.9,3.17906802]
[1740203565078,0.03642761,2695.0,2694.9,3.17906802]
[1740203565608,7.42043,2695.3,2694.9,3.17906802]
[1740203565914,0.03642761,2695.0,2694.9,3.17906802]
[1740203566214,0.03642761,2695.0,2694.9,4.22252138]
[1740203566417,3.71031,2695.2,2694.9,4.22252138]
[1740203566617,0.03642761,2695.0,2694.9,3.17906802]
[1740203566812,3.71016,2695.3,2694.9,3.17906802]
[1740203567017,0.03642761,2695.0,2694.9,3.17906802]
[1740203567220,7.42044,2695.3,2694.9,3.17906802]
[1740203567384,0.03642761,2695.0,2694.9,3.17906802]
[1740203567584,3.71016,2695.3,2694.9,3.17906802]
[1740203567792,0.03642761,2695.2,2694.9,3.17906802]
[1740203568083,3.74673761,2695.2,2694.9,3.17906802]
[1740203569817,3.71052,2695.1,2694.9,3.17906802]
[1740203570419,0.03642761,2695.0,2694.9,3.17906802]
[1740203570922,3.74699761,2695.0,2694.9,3.17906802]
[1740203572324,3.71087,2694.8,2694.5,3.54456558]
[1740203572827,0.03642761,2694.7,2694.5,3.54456558]
[1740203573123,3.71087,2694.8,2694.5,3.54456558]
[1740203573293,0.03642761,2694.6,2694.5,3.54456558]
[1740203573494,3.71077,2694.9,2694.5,3.54456558]
[1740203573700,0.03642761,2694.6,2694.5,3.54456558]
[1740203573900,3.71077,2694.9,2694.5,3.54456558]
[1740203574118,0.03642761,2694.6,2694.5,3.54456558]
[1740203574329,3.71077,2694.9,2694.5,3.54456558]
[1740203574496,0.03642761,2694.6,2694.5,3.54456558]
[1740203575104,3.711,2694.7,2694.5,3.54456558]
[1740203575422,0.03642761,2694.6,2694.5,3.54456558]
[1740203575625,0.03642761,2694.6,2694.5,7.92818894]
[1740203575797,5.23904,2695.6,2694.5,8.47818894]
[1740203575997,0.03642761,2695.5,2695.0,3.54456558]
[1740203576192,0.03642761,2695.5,2695.0,7.25511558]
[1740203577526,3.74637761,2695.5,2695.0,3.54456558]
[1740203578227,3.71003,2695.4,2695.0,3.54456558]
[1740203578434,0.03644136,2695.4,2695.0,3.54456558]
[1740203580629,0.03644136,2695.3,2695.0,3.54456558]
[1740203580921,3.7099,2695.5,2695.0,3.54456558]
[1740203581127,0.03644136,2695.2,2695.0,3.54456558]
[1740203581323,3.71022,2695.3,2695.0,3.54456558]
[1740203581568,0.03644136,2695.1,2695.0,3.54456558]
[1740203581728,3.71022,2695.3,2695.0,3.54456558]
[1740203581904,0.03644136,2695.1,2695.0,3.54456558]
[1740203582101,3.71022,2695.3,2695.0,3.54456558]
[1740203582306,0.03644136,2695.1,2694.7,3.54456558]
[1740203582615,0.03644136,2695.0,2694.7,3.54456558]
[1740203582811,3.71045,2695.1,2694.7,3.54456558]
[1740203583138,0.03644136,2694.9,2694.7,3.54456558]
[1740203583297,3.71026,2695.3,2694.7,3.54456558]
[1740203583627,3.71032,2695.2,2694.7,3.54456558]
[1740203583817,3.74676136,2695.2,2694.7,3.54456558]
[1740203584325,3.71064,2695.0,2694.7,3.54456558]
[1740203584528,5.33815,2695.1,2694.7,3.54456558]
[1740203585036,0.03644136,2695.0,2694.7,3.54456558]
[1740203585410,3.71031,2695.2,2694.7,3.54456558]
[1740203585725,0.03644136,2695.1,2695.0,3.54456558]
[1740203586405,3.70989,2695.5,2695.0,3.54456558]
[1740203586605,3.74652136,2695.4,2695.0,3.54456558]
[1740203588007,3.71025,2695.3,2695.0,3.54456558]
[1740203588550,0.03644136,2695.2,2695.0,3.54456558]
[1740203588845,3.71025,2695.3,2695.0,3.54456558]
[1740203589076,0.03644136,2695.1,2694.7,4.75436436]
[1740203589232,3.71025,2695.3,2694.8,0.87719705]
[1740203589437,0.03644136,2695.0,2694.8,0.87719705]
[1740203589609,3.71025,2695.3,2694.8,0.87719705]
[1740203589946,3.74680136,2695.2,2694.7,3.71089]
[1740203590618,3.74680136,2695.2,2695.0,1.72125512]
[1740203592715,0.03644136,2695.2,2695.0,1.72125512]
[1740203593155,3.71004,2695.4,2695.0,1.72125512]
[1740203593544,3.70995,2695.5,2695.0,1.72125512]
[1740203593923,0.03684068,2695.1,2695.0,1.72125512]
[1740203594123,3.71003,2695.4,2695.0,1.72125512]
[1740203594339,0.03684068,2695.1,2695.0,1.72125512]
[1740203594539,3.71003,2695.4,2695.0,1.72125512]
[1740203594757,0.03684068,2695.1,2695.0,1.72125512]
[1740203595221,3.71003,2695.4,2695.0,1.72125512]
[1740203595421,0.03684068,2695.3,2695.0,1.72125512]
[1740203595860,3.70991,2695.5,2695.0,1.72125512]
[1740203596064,0.03684068,2695.2,2695.0,1.72125512]
[1740203596268,3.71011,2695.4,2695.0,1.72125512]
[1740203596559,0.03684068,2695.1,2695.0,1.72125512]
[1740203596766,3.71011,2695.4,2694.8,5.43201512]
[1740203596938,0.03684068,2695.1,2694.8,5.43201512]
[1740203597133,3.71011,2695.4,2694.8,6.66420843]
[1740203597336,0.03684068,2695.0,2694.8,5.43201512]
[1740203597555,3.71011,2695.4,2694.8,5.43201512]
[1740203597758,0.03684068,2694.9,2694.8,5.43201512]
[1740203597958,3.71011,2695.4,2694.8,5.43201512]
[1740203598162,0.03684068,2694.9,2694.8,5.43201512]
[1740203598360,3.71011,2695.4,2694.8,6.66420843]
[1740203598666,3.71011,2695.4,2694.8,5.43201512]
[1740203598832,0.03684068,2695.3,2694.8,5.43201512]
[1740203599864,8.33754,2695.6,2695.0,5.43176512]
[1740203600066,0.03684068,2695.2,2695.0,5.43176512]
[1740203600370,8.33754,2695.6,2695.0,5.43176512]
[1740203600572,0.03684068,2695.1,2695.0,5.43176512]
[1740203601170,3.7099,2695.5,2695.0,1.72125512]
[1740203601774,0.03684068,2695.4,2695.0,1.72125512]
[1740203602072,0.03684068,2695.4,2695.1,3.71042]
[1740203602371,4.6277,2695.6,2695.1,3.71042]
[1740203602675,3.70998,2695.5,2695.0,1.72125512]
[1740203602986,3.74680068,2695.5,2695.0,1.72125512]
[1740203604981,3.74680068,2695.5,2695.0,4.90032314]
[1740203606983,7.45678068,2695.5,2695.0,4.90032314]
[1740203607572,3.74680068,2695.5,2695.0,4.90032314]
[1740203607784,3.71003,2695.4,2695.0,4.90032314]
[1740203608077,0.03692332,2695.3,2695.0,4.90032314]
[1740203611244,0.03692332,2695.3,2695.0,3.17906802]
[1740203614991,3.74716332,2695.3,2695.0,3.17906802]
[1740203615158,3.71043,2695.1,2695.0,3.17906802]
[1740203615712,3.74735332,2695.1,2695.0,3.17906802]
[1740203615895,5.34065332,2695.1,2694.3,1.72125512]
[1740203616074,3.71127,2694.5,2694.2,3.17906802]
[1740203616398,3.71127,2694.5,2694.2,4.90032314]
[1740203616599,0.03726757,2694.4,2694.2,4.90032314]
[1740203616804,3.71127,2694.5,2694.2,4.90032314]
[1740203617001,5.3045,2694.6,2694.2,4.90032314]
[1740203617365,0.03670297,2694.5,2694.2,4.90032314]
[1740203617574,5.3045,2694.6,2694.2,4.90032314]
[1740203618363,0.03670297,2694.5,2694.2,4.90032314]
[1740203619076,0.03645505,2694.4,2694.2,4.90032314]
[1740203619288,0.03645505,2694.4,2694.3,1.72125512]
[1740203619493,1.5933,2694.6,2694.3,1.72125512]
[1740203619803,0.03645505,2694.4,2694.3,1.72125512]
[1740203620275,1.5933,2694.6,2694.3,1.72125512]
[1740203620478,0.03645505,2694.4,2694.3,1.72125512]
[1740203620694,1.5933,2694.6,2694.3,1.72125512]
[1740203620870,0.03645505,2694.4,2694.3,1.72125512]
[1740203621071,1.5933,2694.6,2694.3,1.72125512]
[1740203621273,0.03645505,2694.4,2694.3,1.72125512]
[1740203621472,5.30442,2694.6,2694.3,1.72125512]
[1740203621672,0.03645505,2694.4,2694.3,1.72125512]
[1740203621873,5.30442,2694.6,2694.3,1.72125512]
[1740203622109,0.03645505,2694.4,2694.3,1.72125512]
[1740203622406,3.71133,2694.5,2694.3,1.72125512]
[1740203622606,0.03645505,2694.4,2694.3,1.72125512]
[1740203624004,3.74785505,2694.4,2694.3,1.72125512]
[1740203624692,3.74785505,2694.4,2694.2,3.17906802]
[1740203626632,0.03645505,2694.4,2694.2,3.17906802]
[1740203626783,3.74786505,2694.4,2694.2,3.17906802]
[1740203628514,0.03645505,2694.4,2694.2,3.17906802]
[1740203628720,3.74785505,2694.4,2694.1,1.72125512]
[1740203630311,0.03645505,2694.4,2694.1,1.72125512]
[1740203630691,3.71126,2694.5,2694.1,1.72125512]
[1740203630895,0.03569762,2694.3,2694.1,1.72125512]
[1740203631208,3.71126,2694.5,2694.1,1.72125512]
[1740203631407,0.03569762,2694.2,2694.1,1.72125512]
[1740203631608,3.71126,2694.5,2694.1,1.72125512]
[1740203631809,0.03569762,2694.2,2694.1,1.72125512]
[1740203631998,3.71126,2694.5,2694.1,1.72125512]
[1740203632198,0.03569762,2694.2,2694.1,1.72125512]
[1740203632398,3.71133,2694.5,2694.1,1.72125512]
[1740203632598,0.03569762,2694.2,2694.1,1.72125512]
[1740203632813,7.42269,2694.5,2694.1,1.72125512]
[1740203633214,0.03569762,2694.4,2694.3,1.72125512]
[1740203633616,1.5933,2694.6,2694.3,1.72125512]
[1740203633812,0.03569762,2694.4,2694.3,1.72125512]
[1740203634285,1.5933,2694.6,2694.3,1.72125512]
[1740203634611,0.03569762,2694.4,2694.1,6.89075802]
[1740203634810,8.33664,2694.9,2694.3,1.72125512]
[1740203635018,8.33664,2694.9,2694.5,1.72125512]
[1740203635919,4.6259,2694.9,2694.5,1.72125512]
[1740203636114,1.5629,2695.3,2694.7,5.43215512]
[1740203636324,2.622189,2695.3,2694.9,1.72125512]
[1740203636537,1.5629,2695.3,2694.9,1.72125512]
[1740203636686,5.27306,2695.3,2694.9,1.72125512]
[1740203636886,0.03569762,2695.2,2694.9,1.72125512]
[1740203637336,1.5629,2695.3,2694.9,1.72125512]
[1740203637618,0.03569762,2695.1,2694.9,1.72125512]
[1740203637783,3.71036,2695.2,2694.7,1.72125512]
[1740203637994,4.608748,2695.2,2694.5,4.90032314]
[1740203638221,3.71043,2695.1,2694.5,4.90032314]
[1740203638423,3.74612762,2695.1,2694.5,4.90032314]
[1740203638727,3.71059,2695.0,2694.5,4.90032314]
[1740203639205,0.03612458,2694.9,2694.5,4.90032314]
[1740203639396,0.03612458,2694.9,2694.7,1.72125512]
[1740203639596,3.7104,2695.2,2694.7,1.72125512]
[1740203639997,0.03612458,2695.1,2694.9,1.72125512]
[1740203640426,0.03612458,2695.0,2694.7,1.72125512]
[1740203640612,3.7105,2695.1,2694.5,4.90032314]
[1740203640819,0.03612458,2695.0,2694.5,4.90032314]
[1740203641129,0.03612458,2695.0,2694.5,8.61158314]
[1740203641497,3.7103,2695.2,2694.5,8.61158314]
[1740203641695,0.03612458,2694.9,2694.5,8.61158314]
[1740203641992,3.71031,2695.2,2694.6,3.71111]
[1740203642191,1.5629,2695.3,2694.7,5.43223512]
[1740203642423,3.71032,2695.2,2694.7,1.72125512]
[1740203642615,3.74644458,2695.2,2694.7,1.72125512]
[1740203642814,3.71046,2695.1,2694.5,7.75147633]
[1740203643131,3.71046,2695.1,2694.6,1.72125512]
[1740203643424,0.03612458,2695.0,2694.6,1.72125512]
[1740203645932,3.71077,2694.9,2694.5,3.17906802]
[1740203646135,1.62,2694.8,2694.5,3.17906802]
[1740203646513,0.03612458,2694.7,2694.5,3.17906802]
[1740203646711,1.62,2694.8,2694.5,3.17906802]
[1740203647030,0.03612458,2694.6,2694.5,3.17906802]
[1740203647419,1.62,2694.8,2694.5,3.17906802]
[1740203647730,0.03612458,2694.7,2694.6,1.72125512]
[1740203648536,5.33049,2695.1,2694.6,1.72125512]
[1740203648730,0.03612458,2694.7,2694.6,1.72125512]
[1740203649034,1.62,2695.1,2694.7,3.71096]
[1740203649635,1.62,2695.1,2694.6,5.43237512]
[1740203651137,1.62,2695.1,2694.6,1.72125512]
[1740203651338,5.33044,2695.1,2694.6,1.72125512]
[1740203651838,0.03593176,2695.0,2694.6,1.72125512]
[1740203652003,3.74651176,2695.0,2694.6,1.72125512]
[1740203655950,0.03593176,2695.0,2694.6,1.72125512]
[1740203658655,3.74651176,2695.0,2694.6,1.72125512]
[1740203660119,0.03593176,2695.0,2694.6,1.72125512]
[1740203661556,3.74652176,2695.0,2694.6,1.72125512]
[1740203661755,3.71078,2694.9,2694.5,3.17906802]
[1740203662262,0.03593176,2694.8,2694.5,3.17906802]
[1740203665835,3.74680176,2694.8,2694.5,3.17906802]
[1740203666548,3.71106,2694.7,2694.5,3.17906802]
[1740203666754,3.71106,2694.7,2694.2,1.72125512]
[1740203666755,5.22466,2694.7,2694.2,1.72125512]
[1740203666944,3.74697912,2694.6,2694.2,1.72125512]
[1740203668232,0.03584912,2694.6,2694.2,1.72125512]
[1740203668827,0.03584912,2694.6,2694.4,1.72125512]
[1740203669946,1.5136,2694.9,2694.4,5.43264512]
[1740203670148,0.03584912,2694.5,2694.4,5.43259512]
[1740203670341,1.5136,2694.9,2694.4,5.43259512]
[1740203670862,0.03584912,2694.8,2694.4,1.72125512]
[1740203671067,0.86186703,2694.8,2694.3,3.17906802]
[1740203671484,3.71098,2694.7,2694.3,3.17906802]
[1740203671969,5.22433,2694.9,2694.4,1.72125512]
[1740203672169,0.03584912,2694.6,2694.4,5.43264512]
[1740203672364,5.22433,2694.9,2694.4,5.43264512]
[1740203672570,0.03584912,2694.5,2694.4,5.43264512]
[1740203672773,5.22433,2694.9,2694.4,5.43264512]
[1740203672949,0.03584912,2694.5,2694.4,5.43264512]
[1740203673149,1.5136,2694.9,2694.4,5.43264512]
[1740203673473,0.03584912,2694.8,2694.4,5.43264512]
[1740203673972,0.03584912,2694.8,2694.4,1.72125512]
[1740203675068,0.03584912,2694.8,2694.4,5.43263512]
[1740203675439,0.03584912,2694.8,2694.5,3.71124]
[1740203675640,0.03584912,2694.8,2694.4,5.43263512]
[1740203675979,0.03584912,2694.8,2694.6,1.72125512]
[1740203676278,0.03584912,2694.8,2694.7,3.71098]
[1740203676573,1.6499,2695.1,2694.6,8.61142314]
[1740203676780,0.03573894,2694.8,2694.7,0.6883421]
[1740203676938,1.6499,2695.1,2694.7,0.6883421]
[1740203677143,0.03573894,2694.8,2694.6,8.61142314]
[1740203677352,1.6499,2695.1,2694.6,8.61142314]
[1740203677841,0.03573894,2695.0,2694.6,8.61142314]
[1740203678257,0.03573894,2695.0,2694.6,12.32248314]
[1740203678445,0.03573894,2695.0,2694.8,1.72125512]
[1740203681779,0.03573894,2695.0,2694.7,3.71095]
[1740203683377,0.03573894,2695.0,2694.6,4.90032314]
[1740203683778,0.03573894,2695.0,2694.6,8.61143314]
[1740203684577,0.03573894,2695.0,2694.6,4.90032314]
[1740203684779,0.03573894,2695.0,2694.7,3.71098]